[Event "Kvibergspelen September 2019"]
[Site "Prioritet Serneke Arena, Krutvagen 2, Gothenburg, Sweden"]
[Date "2019.09.27"]
[Round "4.19"]
[White "Svorono, Gabriel"]
[Black "Frisk, Ellinor"]
[Result "0-1"]
[TimeControl "15 minutes + 5 seconds per move from move one (Round 1 - 4) / 90 minutes + 30 seconds per move from move one (Round 5 - 8)"]
[BlackTitle "WIM"]
[WhiteFideId "1715623"]
[BlackFideId "1708481"]
[WhiteElo "2082"]
[BlackElo "2227"]

1. e4 {[%clk 00:15:05]} {[%emt 00:00:04]} c5 {[%clk 00:15:08]} {[%emt
00:00:03]} 2. Nf3 {[%clk 00:14:57]} {[%emt 00:00:13]} Nc6 {[%clk 00:14:55]}
{[%emt 00:00:17]} 3. Nc3 {[%clk 00:14:48]} {[%emt 00:00:14]} g6 {[%clk
00:14:33]} {[%emt 00:00:28]} 4. d4 {[%clk 00:14:42]} {[%emt 00:00:10]} cxd4
{[%clk 00:14:35]} {[%emt 00:00:03]} 5. Nxd4 {[%clk 00:14:42]} {[%emt 00:00:05]}
Bg7 {[%clk 00:14:32]} {[%emt 00:00:08]} 6. Be3 {[%clk 00:14:44]} {[%emt
00:00:03]} Nf6 {[%clk 00:14:20]} {[%emt 00:00:18]} 7. Bc4 {[%clk 00:14:44]}
{[%emt 00:00:04]} O-O {[%clk 00:14:20]} {[%emt 00:00:06]} 8. Bb3 {[%clk
00:14:47]} {[%emt 00:00:02]} a5 {[%clk 00:14:11]} {[%emt 00:00:14]} 9. O-O
{[%clk 00:14:32]} {[%emt 00:00:19]} a4 {[%clk 00:14:14]} {[%emt 00:00:03]} 10.
Nxa4 {[%clk 00:14:28]} {[%emt 00:00:07]} Nxe4 {[%clk 00:14:14]} {[%emt
00:00:06]} 11. Nb5 {[%clk 00:14:29]} {[%emt 00:00:03]} d5 {[%clk 00:12:53]}
{[%emt 00:01:26]} 12. Bb6 {[%clk 00:12:18]} {[%emt 00:02:15]} Qd7 {[%clk
00:12:22]} {[%emt 00:00:37]} 13. Nc7 {[%clk 00:11:40]} {[%emt 00:00:42]} Rxa4
{[%clk 00:11:39]} {[%emt 00:00:49]} 14. Bxa4 {[%clk 00:11:28]} {[%emt
00:00:17]} Bxb2 {[%clk 00:11:32]} {[%emt 00:00:12]} 15. Qxd5 {[%clk 00:08:33]}
{[%emt 00:02:57]} Bxa1 {[%clk 00:08:20]} {[%emt 00:03:20]} 16. Qxe4 {[%clk
00:07:31]} {[%emt 00:01:06]} Bg7 {[%clk 00:07:33]} {[%emt 00:00:53]} 17. Nd5
{[%clk 00:07:17]} {[%emt 00:00:19]} e6 {[%clk 00:06:30]} {[%emt 00:01:09]} 18.
Nb4 {[%clk 00:06:11]} {[%emt 00:01:10]} Qd2 {[%clk 00:05:58]} {[%emt 00:00:37]}
19. Nxc6 {[%clk 00:05:57]} {[%emt 00:00:19]} bxc6 {[%clk 00:06:00]} {[%emt
00:00:04]} 20. Be3 {[%clk 00:02:34]} {[%emt 00:03:27]} Qe2 {[%clk 00:04:42]}
{[%emt 00:01:23]} 21. Qd3 {[%clk 00:02:13]} {[%emt 00:00:25]} Ba6 {[%clk
00:03:11]} {[%emt 00:01:37]} 22. Qxe2 {[%clk 00:02:09]} {[%emt 00:00:06]} Bxe2
{[%clk 00:03:12]} {[%emt 00:00:08]} 23. Re1 {[%clk 00:01:59]} {[%emt 00:00:14]}
Bc4 {[%clk 00:02:17]} {[%emt 00:01:00]} 24. Bb3 {[%clk 00:01:35]} {[%emt
00:00:29]} Ba6 {[%clk 00:01:49]} {[%emt 00:00:34]} 25. Rd1 {[%clk 00:01:37]}
{[%emt 00:00:02]} Bf6 {[%clk 00:01:20]} {[%emt 00:00:35]} 26. Ba4 {[%clk
00:00:59]} {[%emt 00:00:42]} Bb5 {[%clk 00:01:05]} {[%emt 00:00:21]} 27. Bb3
{[%clk 00:00:58]} {[%emt 00:00:06]} Rd8 {[%clk 00:01:04]} {[%emt 00:00:06]} 28.
Rxd8+ {[%clk 00:00:57]} {[%emt 00:00:04]} Bxd8 {[%clk 00:01:07]} {[%emt
00:00:03]} 29. c4 {[%clk 00:00:49]} {[%emt 00:00:13]} Ba6 {[%clk 00:01:10]}
{[%emt 00:00:02]} 30. Kf1 {[%clk 00:00:51]} {[%emt 00:00:03]} Kf8 {[%clk
00:01:01]} {[%emt 00:00:15]} 31. Ke1 {[%clk 00:00:48]} {[%emt 00:00:07]} Ke7
{[%clk 00:01:01]} {[%emt 00:00:05]} 32. c5 {[%clk 00:00:47]} {[%emt 00:00:05]}
Ba5+ {[%clk 00:00:43]} {[%emt 00:00:24]} 33. Kd1 {[%clk 00:00:50]} {[%emt
00:00:01]} Bc7 {[%clk 00:00:44]} {[%emt 00:00:06]} 34. g3 {[%clk 00:00:51]}
{[%emt 00:00:03]} f6 {[%clk 00:00:44]} {[%emt 00:00:05]} 35. Kc2 {[%clk
00:00:41]} {[%emt 00:00:15]} h5 {[%clk 00:00:38]} {[%emt 00:00:11]} 36. h4
{[%clk 00:00:42]} {[%emt 00:00:03]} Bf1 {[%clk 00:00:26]} {[%emt 00:00:18]} 37.
Bd2 {[%clk 00:00:34]} Bd8 {[%clk 00:00:28]} {[%emt 00:00:16]} 38. Bb4 {[%clk
00:00:35]} g5 {[%clk 00:00:26]} {[%emt 00:00:11]} 39. Kc3 {[%clk 00:00:15]} Bb5
{[%clk 00:00:19]} {[%emt 00:00:38]} 40. Bd1 {[%emt 00:00:16]} g4 {[%clk
00:00:11]} 41. a4 {[%clk 00:00:19]} {[%emt 00:00:02]} Ba6 {[%clk 00:00:16]}
{[%emt 00:00:01]} 42. Bb3 {[%clk 00:00:22]} {[%emt 00:00:02]} f5 {[%clk
00:00:19]} {[%emt 00:00:02]} 43. Bc4 {[%clk 00:00:24]} {[%emt 00:00:02]} Bb7
{[%clk 00:00:23]} {[%emt 00:00:01]} 44. a5 {[%clk 00:00:27]} {[%emt 00:00:02]}
e5 {[%clk 00:00:24]} {[%emt 00:00:05]} 45. a6 {[%clk 00:00:30]} {[%emt
00:00:02]} Ba8 {[%clk 00:00:28]} {[%emt 00:00:01]} 46. Kb3 {[%clk 00:00:28]}
{[%emt 00:00:06]} Kf6 {[%clk 00:00:28]} {[%emt 00:00:06]} 47. Ka4 {[%clk
00:00:30]} {[%emt 00:00:03]} f4 {[%clk 00:00:29]} {[%emt 00:00:04]} 48. Ba5
{[%clk 00:00:28]} {[%emt 00:00:07]} Be7 {[%clk 00:00:31]} {[%emt 00:00:03]} 49.
Bd3 {[%clk 00:00:24]} {[%emt 00:00:08]} Bxc5 {[%clk 00:00:29]} {[%emt
00:00:07]} 50. Bc3 {[%clk 00:00:18]} {[%emt 00:00:11]} fxg3 {[%clk 00:00:23]}
{[%emt 00:00:12]} 51. fxg3 {[%clk 00:00:13]} {[%emt 00:00:09]} Bf2 {[%clk
00:00:26]} {[%emt 00:00:03]} 52. Ka5 {[%clk 00:00:15]} {[%emt 00:00:02]} c5
{[%clk 00:00:16]} {[%emt 00:00:16]} 53. Kb6 {[%clk 00:00:13]} {[%emt 00:00:06]}
c4+ {[%clk 00:00:19]} {[%emt 00:00:03]} 0-1

[Event "Kvibergspelen September 2019"]
[Site "Prioritet Serneke Arena, Krutvagen 2, Gothenburg, Sweden"]
[Date "2019.09.27"]
[Round "4.20"]
[White "Torngren, Gustav"]
[Black "Bergmanolson, Michael"]
[Result "1/2-1/2"]
[TimeControl "15 minutes + 5 seconds per move from move one (Round 1 - 4) / 90 minutes + 30 seconds per move from move one (Round 5 - 8)"]
[WhiteTitle "CM"]
[WhiteFideId "1728970"]
[BlackFideId "1701436"]
[WhiteElo "2227"]
[BlackElo "2050"]

1. c4 {[%clk 00:15:07]} {[%emt 00:00:02]} e5 {[%clk 00:15:08]} {[%emt
00:00:03]} 2. g3 {[%clk 00:15:10]} {[%emt 00:00:02]} Nc6 {[%clk 00:15:11]}
{[%emt 00:00:02]} 3. Bg2 {[%clk 00:15:13]} {[%emt 00:00:02]} Nf6 {[%clk
00:15:14]} {[%emt 00:00:02]} 4. Nf3 {[%clk 00:15:01]} {[%emt 00:00:17]} Bc5
{[%clk 00:14:58]} {[%emt 00:00:22]} 5. O-O {[%clk 00:14:59]} {[%emt 00:00:07]}
d6 {[%clk 00:14:52]} {[%emt 00:00:10]} 6. Nc3 {[%clk 00:14:40]} {[%emt
00:00:25]} O-O {[%clk 00:14:54]} {[%emt 00:00:03]} 7. a3 {[%clk 00:14:42]}
{[%emt 00:00:03]} a6 {[%clk 00:14:51]} {[%emt 00:00:07]} 8. b4 {[%clk
00:14:44]} {[%emt 00:00:03]} Ba7 {[%clk 00:14:53]} {[%emt 00:00:02]} 9. d3
{[%clk 00:14:24]} {[%emt 00:00:26]} h6 {[%clk 00:14:45]} {[%emt 00:00:13]} 10.
Be3 {[%clk 00:13:17]} {[%emt 00:01:11]} Nd4 {[%clk 00:14:26]} {[%emt 00:00:25]}
11. Nd5 {[%clk 00:12:55]} {[%emt 00:00:27]} c6 {[%clk 00:14:08]} {[%emt
00:00:23]} 12. Nxf6+ {[%clk 00:12:37]} {[%emt 00:00:24]} Qxf6 {[%clk 00:14:11]}
{[%emt 00:00:01]} 13. Nxd4 {[%clk 00:12:27]} {[%emt 00:00:15]} Bxd4 {[%clk
00:14:10]} {[%emt 00:00:05]} 14. Bxd4 {[%clk 00:12:29]} {[%emt 00:00:04]} exd4
{[%clk 00:14:14]} {[%emt 00:00:02]} 15. Qd2 {[%clk 00:11:47]} {[%emt 00:00:46]}
Re8 {[%clk 00:13:11]} {[%emt 00:01:08]} 16. Rfe1 {[%clk 00:11:37]} {[%emt
00:00:14]} Bg4 {[%clk 00:12:49]} {[%emt 00:00:27]} 17. Rab1 {[%clk 00:06:57]}
{[%emt 00:04:45]} Re7 {[%clk 00:10:26]} {[%emt 00:02:28]} 18. h3 {[%clk
00:05:22]} {[%emt 00:01:40]} Bd7 {[%clk 00:09:46]} {[%emt 00:00:45]} 19. a4
{[%clk 00:04:58]} {[%emt 00:00:29]} Ree8 {[%clk 00:06:21]} {[%emt 00:03:30]} 20.
Rb2 {[%clk 00:04:29]} {[%emt 00:00:34]} Qe5 {[%clk 00:05:35]} {[%emt 00:00:51]}
21. Reb1 {[%clk 00:03:29]} {[%emt 00:01:05]} Qh5 {[%clk 00:03:57]} {[%emt
00:01:43]} 22. Kh2 {[%clk 00:03:10]} {[%emt 00:00:24]} Qe5 {[%clk 00:03:56]}
{[%emt 00:00:06]} 23. Qd1 {[%clk 00:03:04]} {[%emt 00:00:11]} h5 {[%clk
00:03:46]} {[%emt 00:00:15]} 24. Bf3 {[%clk 00:02:57]} {[%emt 00:00:11]} h4
{[%clk 00:03:45]} {[%emt 00:00:07]} 25. Qg1 {[%clk 00:02:59]} {[%emt 00:00:03]}
hxg3+ {[%clk 00:03:30]} {[%emt 00:00:20]} 26. Qxg3 {[%clk 00:03:00]} {[%emt
00:00:04]} Qxg3+ {[%emt 00:00:21]} 27. fxg3 {[%clk 00:02:44]} {[%emt 00:00:04]}
g6 {[%clk 00:02:47]} {[%emt 00:00:49]} 28. h4 {[%clk 00:02:47]} {[%emt
00:00:02]} Kg7 {[%clk 00:02:48]} {[%emt 00:00:05]} 29. Kg2 {[%clk 00:02:51]}
{[%emt 00:00:01]} Re7 {[%clk 00:02:33]} {[%emt 00:00:20]} 30. Kf2 {[%clk
00:02:46]} {[%emt 00:00:10]} Ree8 {[%clk 00:02:27]} {[%emt 00:00:11]} 31. Ra2
{[%clk 00:02:01]} {[%emt 00:00:50]} Kf6 {[%clk 00:01:44]} {[%emt 00:00:47]} 32.
Rba1 {[%clk 00:02:01]} {[%emt 00:00:05]} g5 {[%clk 00:01:35]} {[%emt 00:00:14]}
33. hxg5+ {[%clk 00:01:45]} {[%emt 00:00:22]} Kxg5 {[%clk 00:01:37]} {[%emt
00:00:02]} 34. Rh1 {[%clk 00:01:48]} {[%emt 00:00:02]} Rh8 {[%clk 00:01:38]}
{[%emt 00:00:04]} 35. Raa1 {[%clk 00:01:50]} {[%emt 00:00:03]} Kf6 {[%clk
00:01:27]} {[%emt 00:00:17]} 36. Kg2 {[%clk 00:01:07]} {[%emt 00:00:47]} Ke7
{[%clk 00:01:04]} {[%emt 00:00:28]} 37. Kf2 {[%clk 00:00:32]} {[%emt 00:00:40]}
Kf6 {[%clk 00:01:04]} {[%emt 00:00:05]} 38. Raf1 {[%clk 00:00:34]} {[%emt
00:00:03]} Ke7 {[%clk 00:01:03]} {[%emt 00:00:07]} 39. Re1 {[%clk 00:00:28]}
{[%emt 00:00:11]} Kf6 {[%clk 00:01:04]} {[%emt 00:00:03]} 40. Ref1 {[%clk
00:00:09]} {[%emt 00:00:24]} Ke7 {[%clk 00:01:08]} {[%emt 00:00:01]} 41. a5
{[%clk 00:00:13]} {[%emt 00:00:02]} Rab8 {[%clk 00:00:51]} {[%emt 00:00:22]} 42.
Ra1 {[%clk 00:00:15]} {[%emt 00:00:02]} Kf6 {[%clk 00:00:46]} {[%emt 00:00:10]}
43. Be4 {[%clk 00:00:11]} {[%emt 00:00:09]} Kg7 {[%clk 00:00:36]} {[%emt
00:00:16]} 44. Kf3 {[%clk 00:00:11]} {[%emt 00:00:05]} f5 {[%clk 00:00:34]}
{[%emt 00:00:07]} 45. b5 {[%clk 00:00:07]} {[%emt 00:00:09]} fxe4+ {[%clk
00:00:36]} {[%emt 00:00:02]} 46. Kxe4 {[%clk 00:00:11]} cxb5 {[%clk 00:00:38]}
{[%emt 00:00:04]} 47. Kxd4 {[%clk 00:00:12]} {[%emt 00:00:04]} Bc6 {[%clk
00:00:34]} {[%emt 00:00:10]} 48. Rhf1 {[%clk 00:00:07]} {[%emt 00:00:09]} bxc4
{[%clk 00:00:33]} {[%emt 00:00:06]} 49. Kxc4 {[%clk 00:00:09]} {[%emt
00:00:02]} Rbf8 {[%clk 00:00:36]} {[%emt 00:00:02]} 50. Rf4 {[%clk 00:00:11]}
{[%emt 00:00:04]} Rxf4+ {[%clk 00:00:39]} {[%emt 00:00:02]} 51. gxf4 {[%clk
00:00:15]} {[%emt 00:00:01]} Kf6 {[%clk 00:00:43]} 52. e4 {[%clk 00:00:11]}
{[%emt 00:00:09]} Rh4 {[%clk 00:00:43]} {[%emt 00:00:05]} 53. Rf1 {[%clk
00:00:14]} {[%emt 00:00:02]} Rh2 {[%clk 00:00:38]} {[%emt 00:00:10]} 54. Kd4
{[%clk 00:00:11]} {[%emt 00:00:07]} Ra2 {[%clk 00:00:41]} {[%emt 00:00:03]} 55.
e5+ {[%emt 00:00:09]} dxe5+ {[%clk 00:00:32]} {[%emt 00:02:07]} 56. fxe5+
{[%clk 00:02:18]} Ke7 {[%clk 00:00:36]} {[%emt 00:00:01]} 57. Kc3 {[%clk
00:00:26]} {[%emt 00:01:57]} Rxa5 {[%clk 00:00:37]} {[%emt 00:00:05]} 58. d4
{[%clk 00:00:30]} Rd5 {[%clk 00:00:31]} {[%emt 00:00:10]} 59. Rg1 {[%clk
00:00:26]} {[%emt 00:00:09]} a5 {[%clk 00:00:28]} {[%emt 00:00:10]} 60. Rg7+
{[%clk 00:00:27]} {[%emt 00:00:01]} Ke8 {[%clk 00:00:29]} {[%emt 00:00:05]} 61.
Rg8+ {[%clk 00:00:29]} {[%emt 00:00:02]} Ke7 {[%clk 00:00:32]} {[%emt
00:00:02]} 62. Rg7+ {[%clk 00:00:33]} {[%emt 00:00:02]} Ke8 {[%clk 00:00:36]}
63. Rg8+ {[%clk 00:00:36]} {[%emt 00:00:02]} Kf7 {[%clk 00:00:36]} {[%emt
00:00:05]} 64. Rc8 {[%clk 00:00:31]} {[%emt 00:00:08]} a4 {[%clk 00:00:36]}
{[%emt 00:00:06]} 65. Rb8 {[%clk 00:00:24]} {[%emt 00:00:12]} Ke6 {[%clk
00:00:35]} {[%emt 00:00:07]} 66. Rh8 {[%clk 00:00:24]} {[%emt 00:00:04]} a3
{[%clk 00:00:28]} {[%emt 00:00:12]} 67. Ra8 {[%clk 00:00:27]} {[%emt 00:00:02]}
Rb5 {[%clk 00:00:14]} {[%emt 00:00:20]} 68. Rxa3 {[%clk 00:00:30]} {[%emt
00:00:03]} Rb1 {[%clk 00:00:18]} 69. Ra8 {[%clk 00:00:15]} {[%emt 00:00:19]}
Rh1 {[%clk 00:00:17]} {[%emt 00:00:05]} 70. Rg8 {[%clk 00:00:10]} {[%emt
00:00:09]} Rc1+ {[%clk 00:00:13]} {[%emt 00:00:11]} 71. Kb4 {[%clk 00:00:08]}
{[%emt 00:00:06]} Rb1+ {[%clk 00:00:09]} {[%emt 00:00:10]} 72. Kc5 {[%clk
00:00:11]} {[%emt 00:00:02]} Rc1+ {[%clk 00:00:12]} {[%emt 00:00:02]} 73. Kb6
{[%clk 00:00:12]} {[%emt 00:00:03]} Rb1+ {[%clk 00:00:16]} {[%emt 00:00:01]} 74.
Kc7 {[%clk 00:00:09]} {[%emt 00:00:09]} Rd1 {[%clk 00:00:18]} {[%emt 00:00:03]}
75. Rg6+ {[%clk 00:00:08]} {[%emt 00:00:05]} Ke7 {[%clk 00:00:17]} {[%emt
00:00:06]} 76. Rd6 {[%clk 00:00:08]} {[%emt 00:00:05]} Bf3 {[%clk 00:00:13]}
{[%emt 00:00:09]} 77. Rd7 {[%clk 00:00:09]} {[%emt 00:00:05]} Ke8 {[%clk
00:00:16]} {[%emt 00:00:02]} 78. Rd8+ {[%clk 00:00:09]} {[%emt 00:00:05]} Ke7
{[%clk 00:00:20]} {[%emt 00:00:01]} 79. Rd7 {[%clk 00:00:12]} {[%emt 00:00:02]}
Ke6 {[%clk 00:00:24]} 80. Rd6+ {[%clk 00:00:15]} {[%emt 00:00:03]} Ke7 {[%clk
00:00:28]} 81. Rd7 {[%clk 00:00:08]} {[%emt 00:00:13]} 1/2-1/2

[Event "Kvibergspelen September 2019"]
[Site "Prioritet Serneke Arena, Krutvagen 2, Gothenburg, Sweden"]
[Date "2019.09.28"]
[Round "5.2"]
[White "Hillarp Persson, Tiger"]
[Black "Le, Quang Long"]
[Result "1/2-1/2"]
[TimeControl "15 minutes + 5 seconds per move from move one (Round 1 - 4) / 90 minutes + 30 seconds per move from move one (Round 5 - 8)"]
[WhiteTitle "GM"]
[BlackTitle "IM"]
[WhiteFideId "1700812"]
[BlackFideId "12401749"]
[WhiteElo "2558"]
[BlackElo "2415"]

1. Nf3 {[%clk 01:30:43]} {[%emt 00:00:16]} f5 {[%clk 01:22:32]} {[%emt
00:08:29]} 2. d3 {[%clk 01:20:39]} {[%emt 00:10:34]} Nf6 {[%clk 01:22:28]}
{[%emt 00:00:34]} 3. Nbd2 {[%clk 01:20:39]} {[%emt 00:00:30]} Nc6 {[%clk
01:20:11]} {[%emt 00:02:47]} 4. e4 {[%clk 01:21:00]} {[%emt 00:00:09]} e5
{[%clk 01:18:36]} {[%emt 00:02:05]} 5. c3 {[%clk 01:17:43]} {[%emt 00:03:46]}
d5 {[%clk 01:15:02]} {[%emt 00:04:05]} 6. exd5 {[%clk 01:07:14]} {[%emt
00:10:59]} Qxd5 {[%clk 01:12:38]} {[%emt 00:02:53]} 7. d4 {[%clk 01:04:08]}
{[%emt 00:03:36]} e4 {[%clk 01:07:22]} {[%emt 00:05:47]} 8. Bc4 {[%clk
01:04:30]} {[%emt 00:00:08]} Qd6 {[%clk 01:07:48]} {[%emt 00:00:04]} 9. Ng5
{[%clk 01:04:42]} {[%emt 00:00:17]} Nd8 {[%clk 01:08:15]} {[%emt 00:00:04]} 10.
Qb3 {[%clk 01:00:31]} {[%emt 00:04:41]} Qe7 {[%clk 01:07:59]} {[%emt 00:00:46]}
11. O-O {[%clk 00:56:26]} {[%emt 00:04:34]} c6 {[%clk 00:56:23]} {[%emt
00:12:07]} 12. Re1 {[%clk 00:51:11]} {[%emt 00:05:44]} h6 {[%clk 00:49:12]}
{[%emt 00:07:42]} 13. Ngxe4 {[%clk 00:34:21]} {[%emt 00:17:20]} fxe4 {[%clk
00:49:35]} {[%emt 00:00:07]} 14. Nxe4 {[%clk 00:34:43]} {[%emt 00:00:07]} Nxe4
{[%clk 00:49:59]} {[%emt 00:00:06]} 15. f3 {[%clk 00:35:06]} {[%emt 00:00:07]}
Bf5 {[%clk 00:47:15]} {[%emt 00:03:14]} 16. fxe4 {[%clk 00:35:23]} {[%emt
00:00:13]} Be6 {[%clk 00:47:40]} {[%emt 00:00:05]} 17. Be3 {[%clk 00:33:23]}
{[%emt 00:02:30]} Bxc4 {[%clk 00:43:53]} {[%emt 00:04:18]} 18. Qxc4 {[%clk
00:33:46]} {[%emt 00:00:07]} Qf7 {[%clk 00:32:02]} {[%emt 00:12:20]} 19. d5
{[%clk 00:31:20]} {[%emt 00:02:56]} Be7 {[%clk 00:32:14]} {[%emt 00:00:18]} 20.
Rad1 {[%clk 00:25:03]} {[%emt 00:06:47]} Qg6 {[%clk 00:28:56]} {[%emt
00:03:49]} 21. Bc5 {[%clk 00:21:00]} {[%emt 00:04:33]} Bxc5+ {[%clk 00:24:31]}
{[%emt 00:04:55]} 22. Qxc5 {[%clk 00:21:24]} {[%emt 00:00:07]} Rf8 {[%clk
00:24:53]} {[%emt 00:00:07]} 23. e5 {[%clk 00:07:37]} {[%emt 00:14:18]} cxd5
{[%clk 00:16:13]} {[%emt 00:09:09]} 24. e6 {[%clk 00:07:56]} {[%emt 00:00:11]}
Nc6 {[%clk 00:16:23]} {[%emt 00:00:21]} 25. Rxd5 {[%clk 00:07:51]} {[%emt
00:00:35]} Rf6 {[%clk 00:14:03]} {[%emt 00:02:50]} 26. e7 {[%clk 00:02:54]}
{[%emt 00:05:27]} Re6 {[%clk 00:11:26]} {[%emt 00:03:06]} 27. Rf1 {[%clk
00:01:13]} {[%emt 00:02:11]} Rxe7 {[%clk 00:10:10]} {[%emt 00:01:46]} 28. Rd6
{[%clk 00:01:26]} {[%emt 00:00:17]} Qe4 {[%clk 00:10:16]} {[%emt 00:00:24]} 29.
Qh5+ {[%clk 00:01:42]} {[%emt 00:00:14]} g6 {[%clk 00:10:41]} {[%emt 00:00:05]}
30. Qxh6 {[%clk 00:00:58]} {[%emt 00:01:14]} Qe3+ {[%clk 00:11:03]} {[%emt
00:00:08]} 31. Qxe3 {[%clk 00:01:22]} {[%emt 00:00:06]} Rxe3 {[%clk 04:04:46]}
{[%emt 00:00:04]} 32. Rxg6 {[%clk 00:01:33]} {[%emt 00:00:19]} O-O-O {[%clk
00:11:53]} {[%emt 00:00:06]} 33. Rgf6 {[%clk 00:01:06]} {[%emt 00:00:57]} Ne5
{[%clk 00:07:18]} {[%emt 00:05:05]} 34. R6f2 {[%clk 00:00:49]} {[%emt
00:00:47]} Kc7 {[%clk 00:06:34]} {[%emt 00:01:14]} 35. h3 {[%clk 00:00:58]}
{[%emt 00:00:21]} Kc6 {[%clk 00:06:39]} {[%emt 00:00:24]} 36. Kh2 {[%clk
00:01:10]} {[%emt 00:00:18]} Rh8 {[%clk 00:06:26]} {[%emt 00:00:43]} 37. Rd2
{[%clk 00:00:55]} {[%emt 00:00:46]} Rh6 {[%clk 00:06:22]} {[%emt 00:00:35]} 38.
Rf4 {[%clk 00:01:11]} {[%emt 00:00:13]} Rg6 {[%clk 00:04:13]} {[%emt 00:02:40]}
39. a4 {[%clk 00:01:14]} {[%emt 00:00:27]} a6 {[%clk 00:02:34]} {[%emt
00:02:09]} 40. Rf8 {[%clk 00:00:43]} {[%emt 00:01:01]} Re4 {[%clk 00:02:07]}
{[%emt 00:00:57]} 41. b4 {[%clk 00:00:33]} {[%emt 00:00:40]} Kc7 {[%clk
00:02:22]} {[%emt 00:00:14]} 42. Rf5 {[%clk 00:00:46]} {[%emt 00:00:17]} Rg7
{[%clk 00:01:33]} {[%emt 00:01:19]} 43. a5 {[%clk 00:00:56]} {[%emt 00:00:21]}
Re7 {[%clk 00:01:27]} {[%emt 00:00:36]} 44. Rd5 {[%clk 00:01:02]} {[%emt
00:00:24]} Re2 {[%clk 00:01:26]} {[%emt 00:00:30]} 45. Kg1 {[%clk 00:01:08]}
{[%emt 00:00:24]} Nc6 {[%clk 00:01:06]} {[%emt 00:00:50]} 46. Rf2 {[%clk
00:01:16]} {[%emt 00:00:23]} R2e3 {[%clk 00:01:10]} {[%emt 00:00:25]} 47. Rc5
{[%clk 00:01:30]} {[%emt 00:00:16]} Rd3 {[%clk 00:00:46]} {[%emt 00:00:55]} 48.
Rb2 {[%clk 00:01:05]} {[%emt 00:00:54]} Kd6 {[%clk 00:01:02]} {[%emt 00:00:14]}
49. Rf2 {[%clk 00:01:04]} {[%emt 00:00:32]} Ree3 {[%clk 00:00:34]} {[%emt
00:00:57]} 50. Rf7 {[%clk 00:01:06]} {[%emt 00:00:28]} Re7 {[%clk 00:00:35]}
{[%emt 00:00:30]} 51. Rf2 {[%clk 00:01:15]} {[%emt 00:00:20]} Re5 {[%clk
00:00:33]} {[%emt 00:00:33]} 52. Rf6+ {[%clk 00:01:36]} {[%emt 00:00:08]} Re6
{[%clk 00:00:55]} {[%emt 00:00:08]} 53. Rxe6+ {[%clk 00:01:30]} {[%emt
00:00:36]} Kxe6 {[%clk 00:01:19]} {[%emt 00:00:06]} 54. b5 {[%clk 00:01:55]}
{[%emt 00:00:06]} axb5 {[%clk 00:00:41]} {[%emt 00:01:08]} 55. Rxb5 {[%clk
00:02:17]} {[%emt 00:00:07]} Rxc3 {[%clk 00:01:01]} {[%emt 00:00:11]} 56. Rxb7
{[%clk 00:02:30]} {[%emt 00:00:17]} Nxa5 {[%clk 00:01:23]} {[%emt 00:00:07]} 57.
Rb5 {[%clk 00:02:47]} {[%emt 00:00:13]} Nc6 {[%clk 00:01:46]} {[%emt 00:00:07]}
58. Kh2 {[%clk 00:03:09]} {[%emt 00:00:07]} Ne5 {[%clk 00:02:09]} {[%emt
00:00:09]} 59. Rb8 {[%clk 00:03:08]} {[%emt 00:00:31]} 1/2-1/2

[Event "Kvibergspelen September 2019"]
[Site "Prioritet Serneke Arena, Krutvagen 2, Gothenburg, Sweden"]
[Date "2019.09.28"]
[Round "5.3"]
[White "Lindberg, Bengt"]
[Black "Blomqvist, Erik"]
[Result "1/2-1/2"]
[TimeControl "15 minutes + 5 seconds per move from move one (Round 1 - 4) / 90 minutes + 30 seconds per move from move one (Round 5 - 8)"]
[WhiteTitle "IM"]
[BlackTitle "GM"]
[WhiteFideId "1700359"]
[BlackFideId "1709437"]
[WhiteElo "2397"]
[BlackElo "2519"]

1. e4 {[%clk 01:30:58]} c5 {[%clk 01:30:53]} {[%emt 00:00:08]} 2. Nf3 {[%clk
01:31:16]} {[%emt 00:00:11]} e6 {[%clk 01:31:13]} {[%emt 00:00:10]} 3. d4
{[%clk 01:31:35]} {[%emt 00:00:12]} cxd4 {[%clk 01:31:37]} {[%emt 00:00:07]} 4.
Nxd4 {[%clk 01:31:57]} {[%emt 00:00:07]} a6 {[%clk 01:31:39]} {[%emt 00:00:28]}
5. Nc3 {[%clk 01:32:06]} {[%emt 00:00:21]} b5 {[%clk 01:32:00]} {[%emt
00:00:09]} 6. Bd3 {[%clk 01:31:55]} {[%emt 00:00:41]} Bb7 {[%clk 01:32:14]}
{[%emt 00:00:17]} 7. O-O {[%clk 01:31:48]} {[%emt 00:00:37]} Nc6 {[%clk
01:32:29]} {[%emt 00:00:16]} 8. Nxc6 {[%clk 01:28:36]} {[%emt 00:03:41]} Bxc6
{[%clk 01:32:51]} {[%emt 00:00:07]} 9. Re1 {[%clk 01:24:58]} {[%emt 00:04:07]}
Qb8 {[%clk 01:32:49]} {[%emt 00:00:33]} 10. Qe2 {[%clk 01:16:18]} {[%emt
00:09:10]} Bd6 {[%clk 01:31:36]} {[%emt 00:01:43]} 11. e5 {[%clk 01:09:38]}
{[%emt 00:07:11]} Bc7 {[%clk 01:31:38]} {[%emt 00:00:28]} 12. Be4 {[%clk
00:56:47]} {[%emt 00:13:21]} Bxe4 {[%clk 01:08:33]} {[%emt 00:23:36]} 13. Qxe4
{[%clk 00:55:51]} {[%emt 00:01:25]} Ne7 {[%clk 01:08:36]} {[%emt 00:00:26]} 14.
Bf4 {[%clk 00:48:28]} {[%emt 00:07:52]} O-O {[%clk 01:01:40]} {[%emt 00:07:27]}
15. Rad1 {[%clk 00:48:13]} {[%emt 00:00:45]} b4 {[%clk 01:01:33]} {[%emt
00:00:37]} 16. Ne2 {[%clk 00:39:20]} {[%emt 00:09:23]} Nd5 {[%clk 00:56:12]}
{[%emt 00:05:52]} 17. Bg3 {[%clk 00:39:09]} {[%emt 00:00:40]} d6 {[%clk
00:54:17]} {[%emt 00:02:26]} 18. exd6 {[%clk 00:33:52]} {[%emt 00:05:48]} Bxd6
{[%clk 00:54:40]} {[%emt 00:00:07]} 19. Bxd6 {[%clk 00:33:39]} {[%emt
00:00:42]} Qxd6 {[%clk 00:55:04]} {[%emt 00:00:05]} 20. c4 {[%clk 00:32:37]}
{[%emt 00:01:32]} bxc3 {[%clk 00:55:12]} {[%emt 00:00:22]} 21. Nxc3 {[%clk
00:29:55]} {[%emt 00:03:13]} Rfd8 {[%clk 00:50:36]} {[%emt 00:05:05]} 1/2-1/2